fUST/lending_fUST_20260226
["ID","MTS","AMOUNT","RATE_DAILY","PERIOD"]
[406714902,1772113843883,-103.32129718,0.00011998,2]
[406714904,1772113843892,-650.0,0.00011998,2]
[406714906,1772113843901,-372.02459385,0.00011998,2]
[406715062,1772113846943,-127.97540615,0.00011998,2]
[406715063,1772113846953,-300.63335098,0.00011998,2]
[406715064,1772113846963,-335.54019035,0.00011998,2]
[406715065,1772113846976,-164.45980965,0.00011998,2]
[406715066,1772113846985,-500.0,0.00011998,2]
[406715067,1772113846995,-500.0,0.00011998,2]
[406715068,1772113847004,-500.0,0.00011998,2]
[406715069,1772113847013,-500.0,0.00011998,2]
[406715070,1772113847023,-500.0,0.00011998,2]
[406715071,1772113847033,-500.0,0.00011998,2]
[406715072,1772113847042,-500.0,0.00011998,2]
[406715073,1772113847052,-500.0,0.00011998,2]
[406715074,1772113847062,-500.0,0.00011998,2]
[406715075,1772113847071,-500.0,0.00011998,2]
[406715076,1772113847081,-500.0,0.00011998,2]
[406715077,1772113847091,-500.0,0.00011998,2]
[406715078,1772113847101,-500.0,0.00011998,2]
[406715079,1772113847110,-500.0,0.00011998,2]
[406715080,1772113847120,-500.0,0.00011998,2]
[406715081,1772113847130,-500.0,0.00011998,2]
[406715082,1772113847140,-500.0,0.00011998,2]
[406715083,1772113847150,-500.0,0.00011998,2]
[406715084,1772113847160,-220.0,0.00011998,2]
[406715085,1772113847170,-500.0,0.00011998,2]
[406715086,1772113847179,-500.0,0.00011998,2]
[406715087,1772113847189,-500.0,0.00011998,2]
[406715088,1772113847199,-500.0,0.00011998,2]
[406715089,1772113847209,-401.90089443,0.00011998,2]
[406715090,1772113847692,-98.09910557,0.00011998,2]
[406715091,1772113847702,-500.0,0.00011998,2]
[406715092,1772113847712,-500.0,0.00011998,2]
[406715093,1772113847722,-500.0,0.00011998,2]
[406715094,1772113847732,-500.0,0.00011998,2]
[406715095,1772113847743,-500.0,0.00011998,2]
[406715096,1772113847752,-500.0,0.00011998,2]
[406715097,1772113847762,-54.60089443,0.00011998,2]
[406715098,1772113848179,-445.39910557,0.00011998,2]
[406715099,1772113848189,-500.0,0.00011998,2]
[406715100,1772113848199,-500.0,0.00011998,2]
[406715101,1772113848208,-500.0,0.00011998,2]
[406715102,1772113848218,-550.0,0.00011998,2]
[406715103,1772113848227,-500.0,0.00011998,2]
[406715104,1772113848237,-500.0,0.00011998,2]
[406715105,1772113848246,-500.0,0.00011998,2]
[406715106,1772113848256,-589.0,0.00011998,2]
[406715107,1772113848266,-300.0,0.00011999,2]
[406715108,1772113848276,-12221.451324,0.00012,2]
[406715109,1772113848288,-20846.40394229,0.00012,2]
[406715114,1772114043151,6023.0,0.000157,120]
[406715125,1772114536039,4884.81072939,0.000105,2]
[406715135,1772114736135,-207.57476003,0.00010188,2]
[406715136,1772114740908,5000.0,0.0001,2]
[406715137,1772114762667,5000.0,0.0001,2]
[406715138,1772114784703,571.99920105,0.0001,2]
[406715139,1772114837114,-603.92921228,0.00010188,2]
[406715140,1772114840091,-191.1017154,0.00010188,2]
[406715141,1772114840343,-1112.45230208,0.00010188,2]
[406715142,1772114843072,-2884.94201021,0.00010188,2]
[406715143,1772114843092,-5000.0,0.00010291,2]
[406715144,1772114843116,-300.0,0.00010445,2]
[406715145,1772114843135,-300.0,0.00010447,2]
[406715146,1772114843159,-260.3092185,0.00010448,2]
[406715147,1772114843182,-1200.0,0.00010658,2]
[406715148,1772114843204,-300.0,0.00010659,2]
[406715149,1772114843224,-300.0,0.00010659,2]
[406715150,1772114843243,-300.0,0.00010659,2]
[406715151,1772114843262,-16349.52052408,0.00010768,2]
[406715153,1772114949127,-5000.0,0.00010553,2]
[406715154,1772114949152,-255.10303413,0.00010607,2]
[406715155,1772114949174,-4323.5407682,0.0001066,2]
[406715156,1772114949195,-194.0,0.00010767,2]
[406715157,1772114949216,-571.0,0.00010768,2]
[406715158,1772114949236,-166.2550076,0.00010768,2]
[406715159,1772114949258,-22482.28825007,0.00011183,2]
[406715160,1772114949291,-27517.71174993,0.00011183,2]
[406715161,1772114949312,-240.22769007,0.00011183,2]
[406715162,1772114955079,-5000.0,0.00010447,2]
[406715163,1772114955100,-259.77230993,0.00011183,2]
[406715164,1772114955120,-350.0,0.00011183,2]
[406715165,1772114955144,-450.0,0.00011183,2]
[406715166,1772114955169,-500.0,0.00011183,2]
[406715167,1772114955194,-500.0,0.00011183,2]
[406715168,1772114955218,-500.0,0.00011183,2]
[406715169,1772114955237,-391.50977102,0.00011183,2]
[406715170,1772114955259,-169.83909211,0.00011183,2]
[406715171,1772114955282,-500.0,0.00011183,2]
[406715172,1772114955304,-500.0,0.00011183,2]
[406715173,1772114955327,-500.0,0.00011183,2]
[406715174,1772114955350,-500.0,0.00011183,2]
[406715175,1772114955372,-500.0,0.00011183,2]
[406715176,1772114955394,-500.0,0.00011183,2]
[406715177,1772114955418,-500.0,0.00011183,2]
[406715178,1772114955440,-500.0,0.00011183,2]
[406715179,1772114955461,-372.0,0.00011183,2]
[406715180,1772114955483,-500.0,0.00011183,2]
[406715181,1772114955506,-500.0,0.00011183,2]
[406715182,1772114955528,-500.0,0.00011183,2]
[406715183,1772114955764,-531.59436778,0.00011183,2]
[406715184,1772114955787,-500.0,0.00011183,2]
[406715185,1772114955810,-353.13084593,0.00011183,2]
[406715186,1772114955831,-247.73977879,0.00011183,2]
[406715187,1772114955853,-500.0,0.00011183,2]
[406715188,1772114955878,-500.0,0.00011183,2]
[406715189,1772114955899,-500.0,0.00011183,2]
[406715190,1772114955922,-500.0,0.00011183,2]
[406715191,1772114955942,-225.33715277,0.00011183,2]
[406715192,1772114955963,-500.0,0.00011183,2]
[406715193,1772114955984,-792.0,0.00011724,2]
[406715194,1772114956005,-1405.67034227,0.00011899,3]
[406715195,1772114956025,-295.974022,0.0001193,2]
[406715196,1772114956045,-4445.9221679,0.00011999,2]
[406715197,1772114956066,-284.9091612,0.00011999,2]
[406715198,1772114956094,-235.78603182,0.00011999,2]
[406715199,1772114956115,-343.33052304,0.00011999,2]
[406715200,1772114956138,-13337.97712514,0.00012,2]
[406715201,1772114965319,-500.0,0.00010767,2]
[406715202,1772114965339,-500.0,0.00011183,2]
[406715203,1772114965361,-348.32448112,0.00011183,2]
[406715204,1772114965385,-500.0,0.00011183,2]
[406715205,1772114965418,-500.0,0.00011183,2]
[406715206,1772114965443,-500.0,0.00011183,2]
[406715207,1772114965466,-500.0,0.00011183,2]
[406715208,1772114965488,-500.0,0.00011183,2]
[406715209,1772114965509,-500.0,0.00011183,2]
[406715210,1772114965532,-500.0,0.00011183,2]
[406715211,1772114965558,-500.0,0.00011183,2]
[406715212,1772114965583,-500.0,0.00011183,2]
[406715213,1772114965605,-500.0,0.00011183,2]
[406715214,1772114965626,-500.0,0.00011183,2]
[406715215,1772114965649,-500.0,0.00011183,2]
[406715216,1772114965674,-500.0,0.00011183,2]
[406715217,1772114965698,-500.0,0.00011183,2]
[406715218,1772114965721,-500.0,0.00011183,2]
[406715219,1772114965743,-500.0,0.00011183,2]
[406715220,1772114965768,-500.0,0.00011183,2]
[406715221,1772114965793,-500.0,0.00011183,2]
[406715222,1772114965817,-500.0,0.00011183,2]
[406715223,1772114965844,-500.0,0.00011183,2]
[406715224,1772114965867,-500.0,0.00011183,2]
[406715225,1772114965890,-500.0,0.00011183,2]
[406715226,1772114965912,-500.0,0.00011183,2]
[406715227,1772114966200,-500.0,0.00011183,2]
[406715228,1772114966233,-500.0,0.00011183,2]
[406715229,1772114966255,-500.0,0.00011183,2]
[406715230,1772114966279,-500.0,0.00011183,2]
[406715231,1772114966304,-500.0,0.00011183,2]
[406715232,1772114966325,-500.0,0.00011183,2]
[406715233,1772114966347,-500.0,0.00011183,2]
[406715234,1772114966368,-382.25012635,0.00011183,2]
[406715235,1772114966390,-500.0,0.00011183,2]
[406715236,1772114966414,-500.0,0.00011183,2]
[406715237,1772114966437,-500.0,0.00011183,2]
[406715238,1772114966458,-500.0,0.00011183,2]
[406715239,1772114966480,-500.0,0.00011183,2]
[406715240,1772114966502,-500.0,0.00011183,2]
[406715241,1772114966526,-500.0,0.00011183,2]
[406715242,1772114966548,-500.0,0.00011183,2]
[406715243,1772114966573,-500.0,0.00011183,2]
[406715244,1772114966596,-500.0,0.00011183,2]
[406715245,1772114966618,-500.0,0.00011183,2]
[406715246,1772114966640,-500.0,0.00011183,2]
[406715247,1772114966662,-500.0,0.00011183,2]
[406715248,1772114966684,-500.0,0.00011183,2]
[406715249,1772114966705,-500.0,0.00011183,2]
[406715250,1772114966726,-8036.47224886,0.00012,2]
[406715295,1772115037804,-4040.89883829,0.00011071,2]
[406715296,1772115037816,-959.10116171,0.00011071,2]
[406715297,1772115037827,-575.0,0.00011071,2]
[406715298,1772115037837,-300.0,0.00011181,2]
[406715299,1772115037847,-47419.57028025,0.00012,2]
[406715300,1772115037859,-41015.70252242,0.00012,2]
[406715302,1772115037869,-193.84,0.00012,2]
[406715304,1772115037879,-600.0,0.00012238,2]
[406715306,1772115037889,-201.66,0.00012245,2]
[406715309,1772115037898,-1643.21771804,0.0001225,3]
[406715311,1772115037908,-420.0,0.00012284,2]
[406715312,1772115037917,-3624.76,0.00012329,2]
[406715313,1772115037927,-3226.63,0.00012329,2]
[406715314,1772115037937,-2688.86,0.00012329,2]
[406715315,1772115037946,-2240.71,0.00012329,2]
[406715316,1772115037957,-1867.26,0.00012329,2]
[406715317,1772115037967,-1043.7010801,0.00012329,2]
[406715318,1772115037976,-1556.05,0.00012329,2]
[406715319,1772115037986,-1296.71,0.00012329,2]
[406715320,1772115037996,-1312.71,0.00012329,2]
[406715321,1772115038006,-1093.92,0.00012329,2]
[406715322,1772115038015,-911.6,0.00012329,2]
[406715323,1772115038025,-759.67,0.00012329,2]
[406715324,1772115038034,-633.06,0.00012329,2]
[406715325,1772115038044,-527.55,0.00012329,2]
[406715326,1772115038054,-439.62,0.00012329,2]
[406715327,1772115038064,-366.35,0.00012329,2]
[406715328,1772115038073,-305.29,0.00012329,2]
[406715329,1772115038083,-254.41,0.00012329,2]
[406715330,1772115038093,-212.01,0.00012329,2]
[406715331,1772115038103,-176.68,0.00012329,2]
[406715332,1772115038112,-883.4,0.00012329,2]
[406715333,1772115038379,-295.974022,0.00012432,2]
[406715334,1772115038412,-6933.65465764,0.00012561,2]
[406715335,1772115038466,-2117.88779629,0.00012561,2]
[406715336,1772115038478,-948.45754607,0.00012561,2]
[406715337,1772115038487,-301.02158028,0.00012607,2]
[406715338,1772115038497,-1258.7194283,0.000129,2]
[406715339,1772115038508,-3061.73858024,0.000129,2]
[406715340,1772115038518,-295.974022,0.00012935,2]
[406715341,1772115038527,-250.0,0.0001316,2]
[406715342,1772115038536,-2023.66835946,0.0001319,3]
[406715343,1772115038548,-568.32480045,0.0001319,3]
[406715344,1772115038558,-346.74939293,0.00013273,2]
[406715349,1772115040199,-153.25060707,0.00013273,2]
[406715350,1772115040210,-500.0,0.00013273,2]
[406715351,1772115040220,-162.90613681,0.00013273,2]
[406715352,1772115040231,-500.0,0.00013273,2]
[406715353,1772115040240,-612.03122719,0.00013273,2]
[406715354,1772115040249,-133.4719739,0.00013273,2]
[406715360,1772115042949,-366.5280261,0.00013273,2]
[406715361,1772115042958,-500.0,0.00013273,2]
[406715362,1772115042968,-336.39165306,0.00013273,2]
[406715363,1772115042977,-500.0,0.00013273,2]
[406715364,1772115042987,-303.97774806,0.00013273,2]
[406715365,1772115042997,-622.21817914,0.00013273,2]
[406715366,1772115043006,-211.21159501,0.00013273,2]
[406715367,1772115043015,-500.0,0.00013273,2]
[406715368,1772115043025,-500.0,0.00013273,2]
[406715369,1772115043034,-500.0,0.00013273,2]
[406715370,1772115043043,-786.89686201,0.00013289,2]
[406715377,1772115043511,-3659.02530589,0.00013289,2]
[406715378,1772115043521,-4320.45800847,0.00013406,2]
[406715379,1772115043530,-500.0,0.00013406,2]
[406715380,1772115043539,-295.974022,0.00013437,2]
[406715381,1772115043548,-720.0,0.00013462,2]
[406715382,1772115043558,-587.0,0.00013497,2]
[406715383,1772115043568,-5000.0,0.00013538,2]
[406715384,1772115043578,-300.0,0.00013673,2]
[406715385,1772115043588,-500.0,0.0001368,2]
[406715386,1772115043597,-3789.85,0.0001369,2]
[406715387,1772115043607,-500.0,0.00013698,2]
[406715388,1772115043617,-500.0,0.00013698,2]
[406715389,1772115043626,-500.0,0.00013698,3]
[406715390,1772115043636,-500.0,0.00013698,4]
[406715391,1772115043645,-555.33802882,0.00013698,2]
[406715392,1772115043654,-500.0,0.00013698,2]
[406715393,1772115043663,-500.0,0.00013698,2]
[406715394,1772115043672,-500.0,0.00013698,2]
[406715395,1772115043681,-150.0,0.00013698,2]
[406715396,1772115043690,-217.074082,0.00013699,2]
[406715397,1772115043700,-1000.0,0.00013699,2]
[406715398,1772115043709,-500.0,0.00013699,2]
[406715399,1772115043718,-537.89070707,0.00013699,2]
[406715400,1772115043727,-500.0,0.00013699,2]
[406715401,1772115043737,-500.0,0.00013699,2]
[406715402,1772115043746,-500.0,0.00013699,2]
[406715403,1772115043755,-167.0984779,0.00013699,2]
[406715404,1772115043764,-500.0,0.00013699,2]
[406715405,1772115043773,-500.0,0.00013699,2]
[406715406,1772115043783,-500.0,0.00013699,2]
[406715407,1772115043792,-264.42252968,0.00013699,2]
[406715408,1772115043802,-162.01722321,0.00013699,2]
[406715409,1772115043812,-159.26501413,0.00013699,2]
[406715410,1772115043821,-500.0,0.00013699,2]
[406715411,1772115043830,-500.0,0.00013699,2]
[406715412,1772115043839,-377.87767477,0.00013699,2]
[406715413,1772115043848,-500.0,0.00013699,2]
[406715414,1772115043857,-500.0,0.00013699,2]
[406715415,1772115043866,-161.06781908,0.00013699,2]
[406715416,1772115043875,-542.51334945,0.00013821,2]
[406715417,1772115043884,-1000.0,0.00013821,2]
[406715418,1772115043893,-500.0,0.00013821,2]
[406715419,1772115043903,-500.0,0.00013821,2]
[406715420,1772115043912,-1000.0,0.00013821,2]
[406715421,1772115043921,-323.07,0.000139,2]
[406715422,1772115043930,-295.974022,0.00013939,2]
[406715423,1772115043939,-184.68251822,0.000141,2]
[406715424,1772115043948,-2804.3403911,0.00014129,3]
[406715425,1772115043957,-797.52259459,0.00014175,2]
[406715426,1772115043966,-1000.0,0.000142,2]
[406715427,1772115043976,-1000.0,0.000142,2]
[406715428,1772115043986,-1000.0,0.000142,2]
[406715429,1772115043995,-1000.0,0.000142,2]
[406715430,1772115044005,-1000.0,0.000142,2]
[406715431,1772115044014,-1000.0,0.000142,2]
[406715432,1772115044024,-688.50134459,0.00014221,2]
[406715433,1772115044033,-500.0,0.00014247,2]
[406715434,1772115044042,-500.0,0.00014247,2]
[406715435,1772115044051,-1000.0,0.00014247,2]
[406715436,1772115044061,-383.75806494,0.00014247,2]
[406715437,1772115044070,-1000.0,0.00014247,2]
[406715438,1772115044079,-925.64240474,0.00014247,2]
[406715439,1772115044088,-503.98896467,0.00014247,2]
[406715440,1772115044098,-804.67006084,0.00014247,2]
[406715441,1772115044107,-1500.0,0.00014368,2]
[406715442,1772115044117,-295.974022,0.00014441,2]
[406715443,1772115044126,-4445.9221679,0.00014579,2]
[406715444,1772115044136,-346.94012642,0.00014607,2]
[406715445,1772115044145,-864.0,0.00014808,2]
[406715446,1772115044155,-823.0,0.00014829,2]
[406715447,1772115044168,-150.0,0.00014844,2]
[406715448,1772115044178,-198.01686278,0.000149,2]
[406715449,1772115044187,-430.90667876,0.00014916,2]
[406715450,1772115044197,-41979.30294864,0.00015,2]
[406715451,1772115044207,-5669.26417803,0.00015,2]
[406715452,1772115044216,-151.8217391,0.00015,2]
[406715453,1772115044226,-3016.68762239,0.00015069,3]
[406715454,1772115044236,-4006.51374375,0.000156,2]
[406715455,1772115044245,-4320.45800847,0.00015729,2]
[406715456,1772115044254,-4445.9221679,0.00015869,2]
[406715457,1772115044263,-3201.35794556,0.00016009,3]
[406715458,1772115044272,-1000.0,0.00016289,2]
[406715459,1772115044281,-1152.0,0.00016292,2]
[406715460,1772115044290,-392.85867256,0.00016607,2]
[406715461,1772115044300,-100000.0,0.0001699,2]
[406715462,1772115044309,-72304.70452249,0.00017,2]
[406715463,1772115044319,-184.68251821,0.00017,2]
[406715464,1772115044328,-26356.06871255,0.000173,2]
[406715465,1772115044337,-153.541144,0.00017568,7]
[406715466,1772115044346,-1613.0,0.000179,2]
[406715467,1772115044355,-1000.0,0.00017917,2]
[406715468,1772115044365,-244.0,0.00017917,2]
[406715469,1772115044375,-500.3125762,0.00018,2]
[406715470,1772115044385,-28746.62532583,0.00018,2]
[406715471,1772115044395,-4320.45800847,0.00018052,2]
[406715472,1772115044405,-500.0,0.00018496,2]
[406715473,1772115044414,-438.77721871,0.00018607,2]
[406715474,1772115044423,-500.0,0.00018698,2]
[406715475,1772115044432,-3761.16905678,0.00018828,3]
[406715476,1772115044442,-500.0,0.00018836,2]
[406715477,1772115044451,-500.0,0.00018989,5]
[406715478,1772115044461,-500.0,0.00018989,6]
[406715479,1772115044471,-500.0,0.00018989,7]
[406715480,1772115044480,-241.80503182,0.00018993,2]
[406715481,1772115044490,-435.24905728,0.00018993,2]
[406715482,1772115044498,-773.77610182,0.00018993,2]
[406715483,1772115044509,-172.46911529,0.00018999,2]
[406715484,1772115044518,-310.44440752,0.00018999,2]
[406715485,1772115044527,-551.90116893,0.00018999,2]
[406715486,1772115044537,-200.0,0.00019102,4]
[406715487,1772115044546,-500.0,0.0001919,2]
[406715488,1772115044556,-500.0,0.00019261,2]
[406715489,1772115044565,-237.6726,0.00019339,2]
[406715490,1772115044575,-500.0,0.00019453,2]
[406715491,1772115044585,-744.71502317,0.00019502,2]
[406715492,1772115044594,-2351.39545715,0.00019636,2]
[406715493,1772115044604,-1623.0,0.00019666,2]
[406715494,1772115044614,-1000.0,0.00019709,2]
[406715495,1772115044624,-492.0,0.00019709,2]
[406715496,1772115044633,-500.0,0.00019788,8]
[406715497,1772115044643,-199024.00895933,0.000198,2]
[406715498,1772115044653,-487.0,0.000198,2]
[406715499,1772115044662,-487.0,0.000198,2]
[406715500,1772115044671,-487.0,0.000198,2]
[406715501,1772115044681,-672.88,0.000198,2]
[406715502,1772115044691,-500.0,0.00019832,2]
[406715503,1772115044700,-1907.66,0.00019888,2]
[406715504,1772115044710,-184.68251821,0.000199,2]
[406715505,1772115044720,-10571.63291226,0.000199,2]
[406715506,1772115044729,-157208.28417516,0.00019988,2]
[406715507,1772115044739,-1271.78,0.00019998,2]
[406715508,1772115044749,-500.0,0.00019999,9]
[406715509,1772115044758,-500.0,0.00019999,10]
[406715510,1772115044768,-500.0,0.00019999,11]
[406715511,1772115044777,-500.0,0.00019999,12]
[406715512,1772115044787,-500.0,0.00019999,13]
[406715513,1772115044796,-500.0,0.00019999,14]
[406715514,1772115044805,-500.0,0.00019999,15]
[406715515,1772115044814,-500.0,0.00019999,16]
[406715516,1772115044823,-5780.63699945,0.00019999,9]
[406715517,1772115044832,-46449.64124628,0.0002,2]
[406715518,1772115044845,-61462.28116385,0.0002,2]
[406715528,1772115045912,-500.0,0.00013698,2]
[406715529,1772115045923,-3195.37278435,0.0002,2]
[406715531,1772115255596,180.0,0.0001,2]
[406715532,1772115826254,248.00079895,0.0001,2]
[406715533,1772115947133,-634.98883588,9.801e-05,2]
[406715534,1772116006090,-952.94727475,9.801e-05,2]
[406715535,1772116028101,-1655.66513005,9.703e-05,2]
[406715538,1772116120795,5000.0,9.5e-05,2]
[406715539,1772116143141,3334.58111547,9.5e-05,2]
[406715540,1772116149140,-5000.0,9.606e-05,2]
[406715541,1772116149163,-3344.33486995,9.703e-05,2]
[406715542,1772116149184,-200.0,9.844e-05,2]
[406715543,1772116149431,-300.0,9.998e-05,2]
[406715544,1772116149462,-1200.0,9.999e-05,2]
[406715545,1772116149483,-300.0,9.999e-05,2]
[406715546,1772116149520,-231.02100729,0.000101,2]
[406715547,1772116149544,-295.12,0.000102,2]
[406715548,1772116149565,-22283.54340083,0.00010274,2]
[406715549,1772116150767,1665.41888453,9.5e-05,2]
[406715550,1772116153103,-3334.58111547,9.5e-05,2]
[406715551,1772116153123,-27716.45659917,0.00010274,2]
[406715552,1772116153142,-300.0,0.00010274,2]
[406715553,1772116153163,-300.0,0.00010274,2]
[406715554,1772116153182,-300.0,0.00010274,2]
[406715555,1772116153202,-2498.0931066,0.00010484,2]
[406715556,1772116153223,-420.0,0.00010998,2]
[406715557,1772116153242,-575.0,0.00011023,2]
[406715558,1772116153261,-10000.0,0.00011247,2]
[406715577,1772116231775,-315.10226625,0.00011977,2]
[406715603,1772116231981,-4684.89773375,0.00011977,2]
[406715605,1772116231991,-589.0,0.00011977,2]
[406715606,1772116232003,-226.40058714,0.00012038,2]
[406715608,1772116232013,-600.0,0.00012238,2]
[406715610,1772116232022,-207.0,0.00012328,2]
[406715611,1772116232031,-180.0,0.00012328,2]
[406715613,1772116232040,-300.0,0.00012328,2]
[406715614,1772116232050,-229.32,0.00012329,2]
[406715615,1772116232059,-191.1,0.00012329,2]
[406715616,1772116232068,-159.25,0.00012329,2]
[406715617,1772116232077,-796.26,0.00012329,2]
[406715618,1772116232087,-1526.86557756,0.000129,2]
[406715629,1772116237993,-633.36342671,0.000129,2]
[406715630,1772116238005,-291.11789587,0.000129,2]
[406715703,1772116240731,-513.62291492,0.00012899,2]
[406715705,1772116240741,-1869.11110836,0.000129,2]
[406715707,1772116240751,-176.0,0.00013,2]
[406715709,1772116240764,-813.39165706,0.00013063,2]
[406715956,1772116243313,-500.0,0.00012899,2]
[406715959,1772116243323,-267.86227181,0.00012899,2]
[406715960,1772116243333,-731.32072702,0.00013063,2]
[406715963,1772116243345,-11180.66681602,0.00013063,2]
[406715966,1772116243354,-208.82972127,0.00013173,2]
[406715969,1772116243364,-500.0,0.00013273,2]
[406715972,1772116243374,-219.32069232,0.00013273,2]
[406715974,1772116243383,-500.0,0.00013273,2]
[406715976,1772116243393,-633.68037286,0.00013273,2]
[406715978,1772116243404,-500.0,0.00013273,2]
[406715980,1772116243414,-500.25545249,0.00013273,2]
[406715982,1772116243424,-168.57300407,0.00013273,2]
[406715984,1772116243434,-166.58823823,0.00013273,2]
[406715986,1772116243444,-500.0,0.00013273,2]
[406715988,1772116243453,-500.0,0.00013273,2]
[406715990,1772116243463,-500.0,0.00013273,2]
[406715992,1772116243473,-500.0,0.00013273,2]
[406715994,1772116243483,-500.0,0.00013273,2]
[406715996,1772116243493,-500.0,0.00013273,2]
[406715998,1772116243503,-500.0,0.00013273,2]
[406716000,1772116243519,-500.0,0.00013273,2]
[406716002,1772116243528,-500.0,0.00013273,2]
[406716004,1772116243538,-500.0,0.00013273,2]
[406716006,1772116243549,-356.75367588,0.00013273,2]
[406716008,1772116243559,-500.0,0.00013273,2]
[406716010,1772116243569,-500.0,0.00013273,2]
[406716012,1772116243578,-635.39959956,0.00013273,2]
[406716014,1772116243587,-500.0,0.00013273,2]
[406716016,1772116243597,-500.0,0.00013273,2]
[406716018,1772116243606,-265.88112738,0.00013273,2]
[406716020,1772116243616,-498.95196248,0.00013273,2]
[406716022,1772116243626,-500.0,0.00013273,2]
[406716024,1772116243635,-500.0,0.00013273,2]
[406716026,1772116243644,-599.78411493,0.00013273,2]
[406716028,1772116243654,-510.22638337,0.00013273,2]
[406716030,1772116243664,-500.0,0.00013273,2]
[406716032,1772116243673,-500.0,0.00013273,2]
[406716034,1772116243683,-500.0,0.00013273,2]
[406716036,1772116243692,-500.0,0.00013273,2]
[406716038,1772116243701,-500.0,0.00013273,2]
[406716040,1772116243711,-600.0,0.00013537,2]
[406716042,1772116243720,-192.80978145,0.00013698,2]
[406716044,1772116243730,-370.17738917,0.00013698,2]
[406716046,1772116243740,-46940.0490847,0.00013699,2]
[406716048,1772116243750,-1376.110583,0.00013699,2]
[406716050,1772116243763,-500.0,0.00013699,2]
[406716052,1772116243772,-500.0,0.00013821,2]
[406716054,1772116243782,-1094.31034457,0.00013821,2]
[406716056,1772116243791,-501.70958376,0.00013821,2]
[406716058,1772116243801,-500.0,0.00013821,2]
[406716060,1772116243810,-500.0,0.00013821,2]
[406716062,1772116243820,-500.0,0.00013821,2]
[406716064,1772116243830,-423.92767376,0.00013821,2]
[406716066,1772116243840,-500.0,0.00013821,2]
[406716068,1772116243850,-697.60501738,0.00013821,2]
[406716070,1772116243860,-500.0,0.00013821,2]
[406716072,1772116243870,-196.74,0.000139,2]
[406716074,1772116243879,-267.15269283,0.00014038,2]
[406716076,1772116243889,-200.0,0.00014288,2]
[406716078,1772116243899,-150.0,0.00014844,2]
[406716080,1772116243908,-720.0,0.00014891,2]
[406716082,1772116243918,-2160.22900423,0.00015229,2]
[406716084,1772116243927,-209.40437684,0.00015521,2]
[406716086,1772116243937,-217.15233878,0.00015521,2]
[406716088,1772116243946,-225.18697532,0.00015521,2]
[406716090,1772116243955,-233.51889341,0.00015521,2]
[406716092,1772116243965,-242.15909246,0.00015521,2]
[406716094,1772116243975,-251.11897888,0.00015521,2]
[406716096,1772116243985,-260.4103811,0.00015521,2]
[406716098,1772116243994,-270.0455652,0.00015521,2]
[406716100,1772116244007,-280.03725112,0.00015521,2]
[406716102,1772116244018,-290.39862941,0.00015521,2]
[406716104,1772116244027,-301.1433787,0.00015521,2]
[406716106,1772116244037,-500.0,0.00015521,2]
[406716108,1772116244046,-398.51273128,0.00015826,2]
[406716110,1772116244056,-307.90479852,0.00016038,2]
[406716112,1772116244066,-864.0,0.0001638,2]
[406716114,1772116244075,-954.96676389,0.00016835,2]
[406716116,1772116244085,-2160.22900423,0.00017652,2]
[406716118,1772116244094,-513.53249264,0.0001773,2]
[406716120,1772116244104,-2052.0758406,0.0001773,2]
[406716122,1772116244113,-348.6569042,0.00018038,2]